[Event "Titled Tuesday Blitz May 25 2021"]
[White "Shapiro, David"]
[Black "Turzo, Attila"]
[WhiteFideId "24133523"]
[BlackFideId "704954"]
[WhiteElo "2261"]
[BlackElo "2497"]
[Result "0-1"]
[Round "04"]
[TimeControl "180+1"]
[Date "2021.05.25"]
[WhiteClock "0:00:05"]
[BlackClock "0:00:33"]

1. d4 {[%clk 0:03:00]}  d5 {[%clk 0:02:58]} 2. Bf4 {[%clk 0:03:01]}  c6 {[%clk 0:02:59]} 3. Nc3 {[%clk 0:03:01]}  Bf5 {[%clk 0:02:57]} 4. e3 {[%clk 0:03:00]}  e6 {[%clk 0:02:57]} 5. g4 {[%clk 0:02:59]}  Bg6 {[%clk 0:02:56]} 6. h4 {[%clk 0:03:00]}  h6 {[%clk 0:02:53]} 7. h5 {[%clk 0:03:00]}  Bh7 {[%clk 0:02:53]} 8. Bd3 {[%clk 0:03:01]}  Bxd3 {[%clk 0:02:53]} 9. Qxd3 {[%clk 0:03:02]}  Bd6 {[%clk 0:02:44]} 10. Nge2 {[%clk 0:03:01]}  Bxf4 {[%clk 0:02:42]} 11. exf4 {[%clk 0:03:02]}  Nd7 {[%clk 0:02:39]} 12. O-O-O {[%clk 0:02:51]}  Ne7 {[%clk 0:02:39]} 13. f5 {[%clk 0:02:47]}  exf5 {[%clk 0:02:37]} 14. gxf5 {[%clk 0:02:48]}  Qc7 {[%clk 0:02:16]} 15. Rhg1 {[%clk 0:02:47]}  Rg8 {[%clk 0:02:15]} 16. Qe3 {[%clk 0:02:38]}  Nf6 {[%clk 0:02:15]} 17. Qe5 {[%clk 0:01:44]}  O-O-O {[%clk 0:02:12]} 18. Nf4 {[%clk 0:01:41]}  Rde8 {[%clk 0:02:05]} 19. Rde1 {[%clk 0:01:36]}  Nd7 {[%clk 0:02:03]} 20. Qe3 {[%clk 0:01:13]}  Nf6 {[%clk 0:01:55]} 21. Qe5 {[%clk 0:01:13]}  Kb8 {[%clk 0:01:42]} 22. Re3 {[%clk 0:01:03]}  Nc8 {[%clk 0:01:36]} 23. Qxc7+ {[%clk 0:00:52]}  Kxc7 {[%clk 0:01:37]} 24. Reg3 {[%clk 0:00:52]}  Nd6 {[%clk 0:01:24]} 25. Rxg7 {[%clk 0:00:53]}  Rxg7 {[%clk 0:01:17]} 26. Rxg7 {[%clk 0:00:54]}  Rg8 {[%clk 0:01:17]} 27. Rxg8 {[%clk 0:00:42]}  Nxg8 {[%clk 0:01:18]} 28. Nce2 {[%clk 0:00:40]}  Nxf5 {[%clk 0:01:18]} 29. c3 {[%clk 0:00:40]}  Nf6 {[%clk 0:01:17]} 30. Kd1 {[%clk 0:00:22]}  Kd6 {[%clk 0:01:16]} 31. Ke1 {[%clk 0:00:20]}  Ke7 {[%clk 0:01:15]} 32. Nc1 {[%clk 0:00:15]}  Ng7 {[%clk 0:01:12]} 33. Ncd3 {[%clk 0:00:14]}  Ngxh5 {[%clk 0:01:10]} 34. Nh3 {[%clk 0:00:13]}  Ne4 {[%clk 0:01:07]} 35. f3 {[%clk 0:00:13]}  Nd6 {[%clk 0:01:04]} 36. Kf2 {[%clk 0:00:11]}  Ng7 {[%clk 0:01:01]} 37. Nhf4 {[%clk 0:00:10]}  Ne6 {[%clk 0:01:00]} 38. Nh5 {[%clk 0:00:08]}  f6 {[%clk 0:00:58]} 39. Ng3 {[%clk 0:00:08]}  Kf7 {[%clk 0:00:57]} 40. Ke3 {[%clk 0:00:09]}  Kg6 {[%clk 0:00:57]} 41. f4 {[%clk 0:00:08]}  Nf5+ {[%clk 0:00:57]} 42. Kf3 {[%clk 0:00:08]}  Nxg3 {[%clk 0:00:55]} 43. Kxg3 {[%clk 0:00:09]}  Kf5 {[%clk 0:00:55]} 44. Kf3 {[%clk 0:00:09]}  h5 {[%clk 0:00:55]} 45. b3 {[%clk 0:00:09]}  h4 {[%clk 0:00:55]} 46. a4 {[%clk 0:00:08]}  h3 {[%clk 0:00:54]} 47. Kg3 {[%clk 0:00:09]}  Ke4 {[%clk 0:00:54]} 48. Nf2+ {[%clk 0:00:08]}  Ke3 {[%clk 0:00:52]} 49. Nxh3 {[%clk 0:00:09]}  Kd3 {[%clk 0:00:52]} 50. f5 {[%clk 0:00:08]}  Nf8 {[%clk 0:00:51]} 51. Nf4+ {[%clk 0:00:08]}  Kxc3 {[%clk 0:00:52]} 52. Ne6 {[%clk 0:00:07]}  Nd7 {[%clk 0:00:49]} 53. Nd8 {[%clk 0:00:07]}  Kxb3 {[%clk 0:00:47]} 54. a5 {[%clk 0:00:06]}  b6 {[%clk 0:00:41]} 55. a6 {[%clk 0:00:04]}  c5 {[%clk 0:00:34]} 56. dxc5 {[%clk 0:00:03]}  bxc5 {[%clk 0:00:35]} 57. Nc6 {[%clk 0:00:04]}  c4 {[%clk 0:00:35]} 58. Nxa7 {[%clk 0:00:04]}  c3 {[%clk 0:00:35]} 59. Nb5 {[%clk 0:00:04]}  c2 {[%clk 0:00:34]} 60. a7 {[%clk 0:00:02]}  Nb6 {[%clk 0:00:34]} 61. Nd4+ {[%clk 0:00:02]}  Kb2 {[%clk 0:00:34]} 62. Ne2 {[%clk 0:00:02]}  c1=Q {[%clk 0:00:34]} 63. Nxc1 {[%clk 0:00:02]}  Kxc1 {[%clk 0:00:35]} 64. Kf4 {[%clk 0:00:02]}  Kd2 {[%clk 0:00:34]} 65. Kg4 {[%clk 0:00:01]}  Ke3 {[%clk 0:00:34]} 66. Kh5 {[%clk 0:00:02]}  Ke4 {[%clk 0:00:34]} 67. Kg6 {[%clk 0:00:03]}  Ke5 {[%clk 0:00:34]} 68. Kf7 {[%clk 0:00:03]}  d4 {[%clk 0:00:35]} 69. Ke7 {[%clk 0:00:03]}  d3 {[%clk 0:00:34]} 70. Kd8 {[%clk 0:00:04]}  d2 {[%clk 0:00:34]} 71. Kc7 {[%clk 0:00:05]}  Na8+ {[%clk 0:00:33]} 72. Kb7 {[%clk 0:00:05]} 0-1


[Site "https://www.chess.com"]

[Event "Titled Tuesday Blitz May 25 2021"]
[White "Skatchkov, Pavel"]
[Black "Hamley, Ryan"]
[WhiteFideId "4121848"]
[BlackFideId "30959497"]
[WhiteElo "2476"]
[BlackElo "2420"]
[Result "1-0"]
[Round "04"]
[TimeControl "180+1"]
[Date "2021.05.25"]
[WhiteClock "0:00:44"]
[BlackClock "0:00:16"]

1. d4 {[%clk 0:03:00]}  Nf6 {[%clk 0:02:59]} 2. c4 {[%clk 0:03:01]}  e6 {[%clk 0:02:59]} 3. Nf3 {[%clk 0:03:00]}  d5 {[%clk 0:02:59]} 4. g3 {[%clk 0:03:00]}  Be7 {[%clk 0:02:57]} 5. Bg2 {[%clk 0:02:59]}  O-O {[%clk 0:02:57]} 6. O-O {[%clk 0:02:58]}  dxc4 {[%clk 0:02:58]} 7. Qc2 {[%clk 0:02:53]}  a6 {[%clk 0:02:56]} 8. a4 {[%clk 0:02:52]}  Bd7 {[%clk 0:02:55]} 9. Qxc4 {[%clk 0:02:53]}  Bc6 {[%clk 0:02:54]} 10. Bg5 {[%clk 0:02:53]}  Nbd7 {[%clk 0:02:52]} 11. Nc3 {[%clk 0:02:46]}  Nb6 {[%clk 0:02:34]} 12. Qd3 {[%clk 0:02:38]}  Nbd5 {[%clk 0:02:03]} 13. Ne5 {[%clk 0:02:14]}  Be8 {[%clk 0:01:55]} 14. Nxd5 {[%clk 0:01:46]}  Nxd5 {[%clk 0:01:37]} 15. Bxe7 {[%clk 0:01:47]}  Qxe7 {[%clk 0:01:37]} 16. e3 {[%clk 0:01:39]}  Rd8 {[%clk 0:01:29]} 17. Rfc1 {[%clk 0:01:37]}  c6 {[%clk 0:01:27]} 18. a5 {[%clk 0:01:30]}  f6 {[%clk 0:01:24]} 19. Nc4 {[%clk 0:01:25]}  Bg6 {[%clk 0:01:24]} 20. Qb3 {[%clk 0:01:16]}  Bf7 {[%clk 0:01:11]} 21. e4 {[%clk 0:01:15]}  Nb4 {[%clk 0:00:49]} 22. Ra4 {[%clk 0:01:14]}  c5 {[%clk 0:00:49]} 23. dxc5 {[%clk 0:01:14]}  Nd3 {[%clk 0:00:48]} 24. Rf1 {[%clk 0:00:55]}  Nxc5 {[%clk 0:00:35]} 25. Qa3 {[%clk 0:00:55]}  Rd4 {[%clk 0:00:32]} 26. Nb6 {[%clk 0:00:45]}  Rfd8 {[%clk 0:00:17]} 27. Rxd4 {[%clk 0:00:43]}  Rxd4 {[%clk 0:00:16]} 28. Rc1 {[%clk 0:00:44]} 1-0


[Site "https://www.chess.com"]

[Event "Titled Tuesday Blitz May 25 2021"]
[White "Stoleriu, George"]
[Black "Grieve, Harry"]
[WhiteFideId "1227505"]
[BlackFideId "426520"]
[WhiteElo "2227"]
[BlackElo "2191"]
[Result "1-0"]
[Round "04"]
[TimeControl "180+1"]
[Date "2021.05.25"]
[WhiteClock "0:00:06"]
[BlackClock "0:00:04"]

1. e4 {[%clk 0:03:00]}  c5 {[%clk 0:02:54]} 2. Nf3 {[%clk 0:03:00]}  e6 {[%clk 0:02:55]} 3. b3 {[%clk 0:02:59]}  b6 {[%clk 0:02:55]} 4. Bb2 {[%clk 0:02:59]}  Bb7 {[%clk 0:02:52]} 5. d3 {[%clk 0:02:59]}  d5 {[%clk 0:02:46]} 6. Nbd2 {[%clk 0:02:59]}  Nc6 {[%clk 0:02:44]} 7. g3 {[%clk 0:02:59]}  Nf6 {[%clk 0:02:39]} 8. Bg2 {[%clk 0:02:58]}  d4 {[%clk 0:02:39]} 9. O-O {[%clk 0:02:58]}  Be7 {[%clk 0:02:39]} 10. e5 {[%clk 0:02:56]}  Nd5 {[%clk 0:02:39]} 11. Ne4 {[%clk 0:02:57]}  O-O {[%clk 0:02:39]} 12. Re1 {[%clk 0:02:53]}  a5 {[%clk 0:02:35]} 13. a4 {[%clk 0:02:52]}  Ncb4 {[%clk 0:02:35]} 14. Nfd2 {[%clk 0:02:51]}  Qc7 {[%clk 0:02:29]} 15. Nc4 {[%clk 0:02:50]}  Rad8 {[%clk 0:02:23]} 16. Qd2 {[%clk 0:02:43]}  Bc6 {[%clk 0:02:21]} 17. h4 {[%clk 0:02:37]}  Qb7 {[%clk 0:02:12]} 18. Ned6 {[%clk 0:02:34]}  Qc7 {[%clk 0:02:12]} 19. h5 {[%clk 0:02:33]}  f6 {[%clk 0:02:06]} 20. Nb5 {[%clk 0:02:09]}  Bxb5 {[%clk 0:02:03]} 21. axb5 {[%clk 0:02:10]}  f5 {[%clk 0:01:45]} 22. Ba3 {[%clk 0:02:07]}  Qd7 {[%clk 0:01:42]} 23. Bxb4 {[%clk 0:02:02]}  cxb4 {[%clk 0:01:30]} 24. Bxd5 {[%clk 0:01:50]}  Qxd5 {[%clk 0:01:30]} 25. Nxb6 {[%clk 0:01:50]}  Qxb5 {[%clk 0:01:28]} 26. Nc4 {[%clk 0:01:50]}  Ra8 {[%clk 0:01:29]} 27. f4 {[%clk 0:01:50]}  a4 {[%clk 0:01:23]} 28. bxa4 {[%clk 0:01:41]}  Rxa4 {[%clk 0:01:23]} 29. Rxa4 {[%clk 0:01:18]}  Qxa4 {[%clk 0:01:24]} 30. Rb1 {[%clk 0:01:19]}  Ra8 {[%clk 0:01:12]} 31. Qc1 {[%clk 0:01:13]}  Kf7 {[%clk 0:01:03]} 32. Nb6 {[%clk 0:01:11]}  Qc6 {[%clk 0:00:56]} 33. Nxa8 {[%clk 0:01:10]}  Qxa8 {[%clk 0:00:56]} 34. Qf1 {[%clk 0:01:10]}  Qa2 {[%clk 0:00:53]} 35. Qd1 {[%clk 0:01:05]}  Qd5 {[%clk 0:00:44]} 36. Ra1 {[%clk 0:01:02]}  Qc6 {[%clk 0:00:43]} 37. Ra7 {[%clk 0:00:52]}  g6 {[%clk 0:00:31]} 38. hxg6+ {[%clk 0:00:51]}  hxg6 {[%clk 0:00:32]} 39. Kf2 {[%clk 0:00:50]}  Kf8 {[%clk 0:00:26]} 40. Ra1 {[%clk 0:00:44]}  Kf7 {[%clk 0:00:26]} 41. Qe2 {[%clk 0:00:40]}  Kg7 {[%clk 0:00:24]} 42. Rb1 {[%clk 0:00:37]}  Kg8 {[%clk 0:00:23]} 43. Rb2 {[%clk 0:00:23]}  Qc3 {[%clk 0:00:21]} 44. Ra2 {[%clk 0:00:21]}  Qc6 {[%clk 0:00:21]} 45. Qf3 {[%clk 0:00:20]}  Qc3 {[%clk 0:00:20]} 46. Qe2 {[%clk 0:00:16]}  Qc6 {[%clk 0:00:20]} 47. Ra7 {[%clk 0:00:15]}  Kf7 {[%clk 0:00:20]} 48. Qd2 {[%clk 0:00:16]}  Kf8 {[%clk 0:00:18]} 49. Kg1 {[%clk 0:00:11]}  Qf3 {[%clk 0:00:15]} 50. Qf2 {[%clk 0:00:08]}  Qd1+ {[%clk 0:00:14]} 51. Kg2 {[%clk 0:00:07]}  b3 {[%clk 0:00:13]} 52. cxb3 {[%clk 0:00:05]}  Qxd3 {[%clk 0:00:14]} 53. Qf3 {[%clk 0:00:05]}  Qc2+ {[%clk 0:00:09]} 54. Kh3 {[%clk 0:00:05]}  Qc5 {[%clk 0:00:06]} 55. Ra8+ {[%clk 0:00:05]}  Kf7 {[%clk 0:00:06]} 56. Ra6 {[%clk 0:00:05]}  Qc2 {[%clk 0:00:05]} 57. Ra7 {[%clk 0:00:03]}  Qc5 {[%clk 0:00:04]} 58. Rd7 {[%clk 0:00:03]}  Qb4 {[%clk 0:00:04]} 59. Qb7 {[%clk 0:00:02]}  Ke8 {[%clk 0:00:04]} 60. Qxb4 {[%clk 0:00:02]}  Bxb4 {[%clk 0:00:03]} 61. Rxd4 {[%clk 0:00:03]}  Bc5 {[%clk 0:00:03]} 62. Rc4 {[%clk 0:00:04]}  Be3 {[%clk 0:00:03]} 63. Kg2 {[%clk 0:00:04]}  Kd7 {[%clk 0:00:03]} 64. Kf3 {[%clk 0:00:05]}  Bb6 {[%clk 0:00:04]} 65. b4 {[%clk 0:00:05]}  Ba7 {[%clk 0:00:03]} 66. b5 {[%clk 0:00:05]}  Bb6 {[%clk 0:00:04]} 67. Rc6 {[%clk 0:00:06]}  Bd4 {[%clk 0:00:04]} 68. Rd6+ {[%clk 0:00:06]} 1-0


[Site "https://www.chess.com"]

[Event "Titled Tuesday Blitz May 25 2021"]
[White "Timofeev, Artyom"]
[Black "Von Buelow, Georg"]
[WhiteFideId "4140419"]
[BlackFideId "4620658"]
[WhiteElo "2582"]
[BlackElo "2223"]
[Result "1-0"]
[Round "04"]
[TimeControl "180+1"]
[Date "2021.05.25"]
[WhiteClock "0:00:42"]
[BlackClock "0:00:02"]

1. c4 {[%clk 0:03:00]}  g6 {[%clk 0:02:59]} 2. Nc3 {[%clk 0:02:59]}  Bg7 {[%clk 0:02:59]} 3. g3 {[%clk 0:02:59]}  Nf6 {[%clk 0:02:58]} 4. Bg2 {[%clk 0:03:00]}  O-O {[%clk 0:02:58]} 5. d3 {[%clk 0:03:00]}  d6 {[%clk 0:02:58]} 6. Nf3 {[%clk 0:02:59]}  e5 {[%clk 0:02:58]} 7. O-O {[%clk 0:02:59]}  Nc6 {[%clk 0:02:56]} 8. Rb1 {[%clk 0:02:58]}  a5 {[%clk 0:02:55]} 9. b3 {[%clk 0:02:58]}  h6 {[%clk 0:02:44]} 10. Bb2 {[%clk 0:02:55]}  Re8 {[%clk 0:02:42]} 11. Nd2 {[%clk 0:02:53]}  Bg4 {[%clk 0:02:36]} 12. h3 {[%clk 0:02:52]}  Be6 {[%clk 0:02:35]} 13. Nd5 {[%clk 0:02:52]}  Ne7 {[%clk 0:02:28]} 14. e4 {[%clk 0:02:44]}  c6 {[%clk 0:02:26]} 15. Nxf6+ {[%clk 0:02:41]}  Bxf6 {[%clk 0:02:25]} 16. Nf3 {[%clk 0:02:37]}  Qd7 {[%clk 0:02:22]} 17. Kh2 {[%clk 0:02:36]}  Bg7 {[%clk 0:02:17]} 18. d4 {[%clk 0:02:35]}  Qc7 {[%clk 0:02:11]} 19. Rc1 {[%clk 0:02:24]}  Rad8 {[%clk 0:02:00]} 20. Re1 {[%clk 0:02:19]}  Bc8 {[%clk 0:01:50]} 21. Qd2 {[%clk 0:02:16]}  Kh7 {[%clk 0:01:45]} 22. Bc3 {[%clk 0:02:11]}  b6 {[%clk 0:01:44]} 23. Qb2 {[%clk 0:02:10]}  Ng8 {[%clk 0:01:36]} 24. Rcd1 {[%clk 0:02:05]}  f6 {[%clk 0:01:30]} 25. Qa3 {[%clk 0:01:33]}  h5 {[%clk 0:01:19]} 26. c5 {[%clk 0:01:29]}  dxc5 {[%clk 0:01:15]} 27. dxc5 {[%clk 0:01:29]}  Bf8 {[%clk 0:01:06]} 28. cxb6 {[%clk 0:01:26]}  Qxb6 {[%clk 0:00:48]} 29. Qxa5 {[%clk 0:01:22]}  Bc5 {[%clk 0:00:37]} 30. Qxb6 {[%clk 0:01:21]}  Bxb6 {[%clk 0:00:37]} 31. Kg1 {[%clk 0:01:21]}  Be6 {[%clk 0:00:24]} 32. Bf1 {[%clk 0:01:20]}  Kg7 {[%clk 0:00:23]} 33. Nd2 {[%clk 0:01:17]}  Kf7 {[%clk 0:00:18]} 34. Nc4 {[%clk 0:01:16]}  Bc7 {[%clk 0:00:18]} 35. Ba5 {[%clk 0:01:11]}  Bxa5 {[%clk 0:00:17]} 36. Nxa5 {[%clk 0:01:11]}  Rc8 {[%clk 0:00:14]} 37. Nb7 {[%clk 0:01:09]}  Rc7 {[%clk 0:00:09]} 38. Nd6+ {[%clk 0:01:09]}  Ke7 {[%clk 0:00:10]} 39. Nxe8 {[%clk 0:01:08]}  Kxe8 {[%clk 0:00:11]} 40. Rc1 {[%clk 0:01:06]}  Ke7 {[%clk 0:00:10]} 41. Bc4 {[%clk 0:01:06]}  Bxc4 {[%clk 0:00:09]} 42. Rxc4 {[%clk 0:01:06]}  Ke6 {[%clk 0:00:09]} 43. Rec1 {[%clk 0:01:05]}  Ne7 {[%clk 0:00:10]} 44. b4 {[%clk 0:01:05]}  Ra7 {[%clk 0:00:10]} 45. R1c2 {[%clk 0:01:05]}  Ra3 {[%clk 0:00:09]} 46. R4c3 {[%clk 0:01:03]}  Ra4 {[%clk 0:00:09]} 47. a3 {[%clk 0:01:04]}  Ra7 {[%clk 0:00:09]} 48. Kg2 {[%clk 0:01:02]}  f5 {[%clk 0:00:09]} 49. exf5+ {[%clk 0:01:02]}  gxf5 {[%clk 0:00:10]} 50. Ra2 {[%clk 0:00:59]}  Rb7 {[%clk 0:00:09]} 51. Rc5 {[%clk 0:00:57]}  Kd6 {[%clk 0:00:09]} 52. Rd2+ {[%clk 0:00:52]}  Nd5 {[%clk 0:00:09]} 53. Ra5 {[%clk 0:00:52]}  Ke6 {[%clk 0:00:07]} 54. Ra6 {[%clk 0:00:51]}  Kd7 {[%clk 0:00:04]} 55. Ra8 {[%clk 0:00:49]}  e4 {[%clk 0:00:03]} 56. Rh8 {[%clk 0:00:48]}  Ke6 {[%clk 0:00:03]} 57. Rxh5 {[%clk 0:00:48]}  Ra7 {[%clk 0:00:03]} 58. Rh6+ {[%clk 0:00:48]}  Ke5 {[%clk 0:00:03]} 59. Rxc6 {[%clk 0:00:48]}  e3 {[%clk 0:00:01]} 60. fxe3 {[%clk 0:00:42]}  Nxe3+ {[%clk 0:00:02]} 61. Kf3 {[%clk 0:00:42]} 1-0


[Site "https://www.chess.com"]

[Event "Titled Tuesday Blitz May 25 2021"]
[White "Tomb, Maroun"]
[Black "Harutjunyan, Gevorg"]
[WhiteFideId "5300398"]
[BlackFideId "13300873"]
[WhiteElo "2508"]
[BlackElo "2498"]
[Result "0-1"]
[Round "04"]
[TimeControl "180+1"]
[Date "2021.05.25"]
[WhiteClock "0:01:24"]
[BlackClock "0:02:23"]

1. e4 {[%clk 0:03:00]}  c6 {[%clk 0:02:59]} 2. Nc3 {[%clk 0:02:55]}  d5 {[%clk 0:02:59]} 3. Nf3 {[%clk 0:02:55]}  dxe4 {[%clk 0:02:58]} 4. Nxe4 {[%clk 0:02:56]}  Nf6 {[%clk 0:02:59]} 5. Qe2 {[%clk 0:02:56]}  Bf5 {[%clk 0:02:53]} 6. Nxf6+ {[%clk 0:02:55]}  gxf6 {[%clk 0:02:53]} 7. b3 {[%clk 0:02:56]}  Na6 {[%clk 0:02:50]} 8. Bb2 {[%clk 0:02:54]}  Nb4 {[%clk 0:02:46]} 9. d3 {[%clk 0:02:46]}  Bh6 {[%clk 0:02:32]} 10. Bxf6 {[%clk 0:02:11]}  Nxc2+ {[%clk 0:02:29]} 11. Qxc2 {[%clk 0:02:04]}  exf6 {[%clk 0:02:28]} 12. Be2 {[%clk 0:01:49]}  Qa5+ {[%clk 0:02:28]} 13. Kf1 {[%clk 0:01:49]}  O-O-O {[%clk 0:02:26]} 14. h3 {[%clk 0:01:38]}  Rhe8 {[%clk 0:02:24]} 15. g4 {[%clk 0:01:38]}  Rxe2 {[%clk 0:02:23]} 16. Kxe2 {[%clk 0:01:23]}  Bxd3+ {[%clk 0:02:23]} 17. Qxd3 {[%clk 0:01:24]}  Rxd3 {[%clk 0:02:23]} 18. Kxd3 {[%clk 0:01:24]}  Qd5+ {[%clk 0:02:23]} 0-1


[Site "https://www.chess.com"]

[Event "Titled Tuesday Blitz May 25 2021"]
[White "Trimitzios, Petros"]
[Black "Grunberg, Mihai-Lucian"]
[WhiteFideId "25808796"]
[BlackFideId "1204149"]
[WhiteElo "2049"]
[BlackElo "2364"]
[Result "0-1"]
[Round "04"]
[TimeControl "180+1"]
[Date "2021.05.25"]
[WhiteClock "0:00:01"]
[BlackClock "0:00:35"]

1. c4 {[%clk 0:03:00]}  Nf6 {[%clk 0:02:59]} 2. Nc3 {[%clk 0:02:52]}  d5 {[%clk 0:02:58]} 3. cxd5 {[%clk 0:02:49]}  Nxd5 {[%clk 0:02:58]} 4. Nf3 {[%clk 0:02:47]}  g6 {[%clk 0:02:57]} 5. h4 {[%clk 0:02:46]}  h5 {[%clk 0:02:55]} 6. e4 {[%clk 0:02:41]}  Nxc3 {[%clk 0:02:55]} 7. bxc3 {[%clk 0:02:35]}  Bg7 {[%clk 0:02:55]} 8. d4 {[%clk 0:02:33]}  c5 {[%clk 0:02:54]} 9. Be3 {[%clk 0:02:29]}  O-O {[%clk 0:02:53]} 10. Be2 {[%clk 0:02:27]}  Bg4 {[%clk 0:02:52]} 11. O-O {[%clk 0:02:24]}  cxd4 {[%clk 0:02:51]} 12. cxd4 {[%clk 0:02:22]}  Nc6 {[%clk 0:02:51]} 13. d5 {[%clk 0:02:21]}  Bxf3 {[%clk 0:02:30]} 14. Bxf3 {[%clk 0:02:18]}  Ne5 {[%clk 0:02:27]} 15. Rb1 {[%clk 0:02:15]}  Nxf3+ {[%clk 0:02:26]} 16. Qxf3 {[%clk 0:02:14]}  Qd7 {[%clk 0:02:24]} 17. Rfd1 {[%clk 0:02:00]}  b6 {[%clk 0:02:23]} 18. Bf4 {[%clk 0:01:45]}  Rac8 {[%clk 0:02:19]} 19. Qe2 {[%clk 0:01:27]}  Qa4 {[%clk 0:02:12]} 20. Rd2 {[%clk 0:01:19]}  Rc4 {[%clk 0:02:09]} 21. f3 {[%clk 0:01:16]}  Rfc8 {[%clk 0:02:05]} 22. Rbd1 {[%clk 0:01:11]}  Bc3 {[%clk 0:01:57]} 23. Rd3 {[%clk 0:00:56]}  Bf6 {[%clk 0:01:55]} 24. d6 {[%clk 0:00:46]}  exd6 {[%clk 0:01:52]} 25. Bxd6 {[%clk 0:00:44]}  Rc2 {[%clk 0:01:48]} 26. R1d2 {[%clk 0:00:36]}  Qxa2 {[%clk 0:01:47]} 27. e5 {[%clk 0:00:35]}  Bxh4 {[%clk 0:01:35]} 28. f4 {[%clk 0:00:26]}  Bg3 {[%clk 0:01:27]} 29. Rxg3 {[%clk 0:00:18]}  Rxd2 {[%clk 0:01:25]} 30. Qe4 {[%clk 0:00:18]}  Qe6 {[%clk 0:00:55]} 31. f5 {[%clk 0:00:17]}  Qd5 {[%clk 0:00:54]} 32. Qf4 {[%clk 0:00:15]}  Qd4+ {[%clk 0:00:52]} 33. Qxd4 {[%clk 0:00:14]}  Rxd4 {[%clk 0:00:52]} 34. fxg6 {[%clk 0:00:14]}  fxg6 {[%clk 0:00:53]} 35. Rxg6+ {[%clk 0:00:13]}  Kf7 {[%clk 0:00:52]} 36. Rf6+ {[%clk 0:00:14]}  Kg7 {[%clk 0:00:52]} 37. Re6 {[%clk 0:00:13]}  a5 {[%clk 0:00:46]} 38. Be7 {[%clk 0:00:10]}  Kf7 {[%clk 0:00:43]} 39. Rd6 {[%clk 0:00:07]}  Rxd6 {[%clk 0:00:42]} 40. exd6 {[%clk 0:00:08]}  Ke6 {[%clk 0:00:40]} 41. Kh2 {[%clk 0:00:05]}  a4 {[%clk 0:00:37]} 42. Kh3 {[%clk 0:00:05]}  a3 {[%clk 0:00:34]} 43. d7 {[%clk 0:00:03]}  Kxd7 {[%clk 0:00:34]} 44. Bxa3 {[%clk 0:00:02]}  Rc3+ {[%clk 0:00:34]} 45. g3 {[%clk 0:00:01]}  Rxa3 {[%clk 0:00:35]} 0-1


[Site "https://www.chess.com"]

[Event "Titled Tuesday Blitz May 25 2021"]
[White "Tymrakiewicz, Rafal"]
[Black "Trent, Lawrence"]
[WhiteFideId "1108832"]
[BlackFideId "408638"]
[WhiteElo "2172"]
[BlackElo "2474"]
[Result "0-1"]
[Round "04"]
[TimeControl "180+1"]
[Date "2021.05.25"]
[WhiteClock "0:00:01"]
[BlackClock "0:00:38"]

1. e4 {[%clk 0:03:00]}  e5 {[%clk 0:02:59]} 2. Nf3 {[%clk 0:03:00]}  Nc6 {[%clk 0:02:59]} 3. Bb5 {[%clk 0:02:59]}  Bc5 {[%clk 0:02:59]} 4. c3 {[%clk 0:02:56]}  f5 {[%clk 0:02:59]} 5. d4 {[%clk 0:02:38]}  fxe4 {[%clk 0:02:58]} 6. dxc5 {[%clk 0:02:37]}  exf3 {[%clk 0:02:58]} 7. Qxf3 {[%clk 0:02:36]}  Nf6 {[%clk 0:02:59]} 8. Bg5 {[%clk 0:02:22]}  O-O {[%clk 0:02:58]} 9. Nd2 {[%clk 0:02:22]}  Qe7 {[%clk 0:02:57]} 10. Qe3 {[%clk 0:01:48]}  b6 {[%clk 0:02:50]} 11. Ne4 {[%clk 0:01:44]}  Bb7 {[%clk 0:02:43]} 12. Bc4+ {[%clk 0:01:35]}  Kh8 {[%clk 0:02:43]} 13. O-O-O {[%clk 0:01:22]}  Na5 {[%clk 0:02:42]} 14. Bxf6 {[%clk 0:00:51]}  gxf6 {[%clk 0:02:36]} 15. Bd5 {[%clk 0:00:46]}  Bxd5 {[%clk 0:02:15]} 16. Rxd5 {[%clk 0:00:47]}  Qe6 {[%clk 0:02:03]} 17. Rhd1 {[%clk 0:00:44]}  Rf7 {[%clk 0:02:03]} 18. Qh3 {[%clk 0:00:34]}  Qxh3 {[%clk 0:01:10]} 19. gxh3 {[%clk 0:00:34]}  Rd8 {[%clk 0:01:09]} 20. b4 {[%clk 0:00:30]}  Nc4 {[%clk 0:01:08]} 21. Kc2 {[%clk 0:00:19]}  h6 {[%clk 0:01:01]} 22. Kb3 {[%clk 0:00:18]}  c6 {[%clk 0:00:51]} 23. R5d3 {[%clk 0:00:16]}  b5 {[%clk 0:00:52]} 24. Rf3 {[%clk 0:00:13]}  f5 {[%clk 0:00:52]} 25. Nd6 {[%clk 0:00:12]}  Nxd6 {[%clk 0:00:50]} 26. Rxd6 {[%clk 0:00:13]}  Kh7 {[%clk 0:00:47]} 27. Rfd3 {[%clk 0:00:13]}  e4 {[%clk 0:00:44]} 28. Rd1 {[%clk 0:00:13]}  f4 {[%clk 0:00:44]} 29. Rxc6 {[%clk 0:00:12]}  dxc6 {[%clk 0:00:44]} 30. Rxd8 {[%clk 0:00:12]}  e3 {[%clk 0:00:45]} 31. fxe3 {[%clk 0:00:12]}  f3 {[%clk 0:00:45]} 32. Rd1 {[%clk 0:00:12]}  Kg6 {[%clk 0:00:45]} 33. c4 {[%clk 0:00:11]}  Kf5 {[%clk 0:00:41]} 34. cxb5 {[%clk 0:00:12]}  cxb5 {[%clk 0:00:41]} 35. a4 {[%clk 0:00:13]}  a6 {[%clk 0:00:39]} 36. axb5 {[%clk 0:00:09]}  axb5 {[%clk 0:00:40]} 37. Kc3 {[%clk 0:00:09]}  f2 {[%clk 0:00:39]} 38. Rf1 {[%clk 0:00:09]}  Ke4 {[%clk 0:00:40]} 39. Kd2 {[%clk 0:00:06]}  Kf3 {[%clk 0:00:40]} 40. e4 {[%clk 0:00:04]}  Rd7+ {[%clk 0:00:40]} 41. Kc2 {[%clk 0:00:03]}  Ke2 {[%clk 0:00:41]} 42. Rb1 {[%clk 0:00:01]}  Rd4 {[%clk 0:00:38]} 43. e5 {[%clk 0:00:01]}  Re4 {[%clk 0:00:38]} 0-1


[Site "https://www.chess.com"]